bitfinex/quotes_ETHUSD_20240925
["timestamp","ask_amount","ask_price","bid_price","bid_amount"]
[1727234978976,3.77539,2648.8,2648.4,0.8082]
[1727234979179,4.581,2649.0,2648.4,0.8082]
[1727234979180,3.7751,2649.0,2648.4,4.58401]
[1727234979486,7.55019,2649.0,2648.4,4.58401]
[1727234979972,3.77519,2648.9,2648.4,4.58401]
[1727234980348,3.77541,2648.8,2648.4,0.8082]
[1727234981661,3.77553,2648.7,2648.4,0.8082]
[1727234982210,7.55105,2648.7,2648.4,0.8082]
[1727234982907,3.77552,2648.7,2648.4,0.8082]
[1727234983400,7.55104,2648.7,2648.4,0.8082]
[1727234983780,7.55105,2648.7,2648.4,0.8082]
[1727234984486,3.77552,2648.7,2648.4,0.8082]
[1727234984874,7.55106,2648.7,2648.4,0.8082]
[1727234985100,3.77561,2648.6,2648.4,0.8082]
[1727234985605,3.77572,2648.5,2648.4,0.8082]
[1727234985999,3.77572,2648.5,2648.1,0.8153]
[1727234989308,3.77579,2648.5,2648.1,0.8153]
[1727234990920,3.77561,2648.6,2648.1,0.8153]
[1727234991104,7.55129,2648.6,2648.1,0.8153]
[1727234992132,3.77561,2648.6,2648.1,0.8153]
[1727234992374,7.55128,2648.6,2648.1,0.8153]
[1727234992989,3.77561,2648.6,2648.1,0.8153]
[1727234993194,7.55128,2648.6,2648.1,0.8153]
[1727234993826,7.55129,2648.6,2648.1,0.8153]
[1727234994940,0.8059,2648.8,2648.2,4.59141]
[1727234994941,3.77542,2648.8,2648.2,4.59141]
[1727234995142,3.7756,2648.6,2648.3,0.8153]
[1727234995827,7.55079,2648.8,2648.3,0.8153]
[1727234996010,3.77537,2648.8,2648.3,3.85137216]
[1727234996349,3.77537,2648.8,2648.4,0.8153]
[1727234999219,7.55076,2648.8,2648.4,0.8153]
[1727234999419,3.77549,2648.7,2648.4,0.8153]
[1727234999971,3.77558,2648.6,2648.4,0.8153]
[1727235000481,7.55124,2648.6,2648.4,0.8153]
[1727235000646,3.77558,2648.6,2648.4,0.8153]
[1727235000848,3.77572,2648.5,2648.4,0.8153]
[1727235001049,3.77551,2648.7,2648.4,0.8153]
[1727235001236,3.77558,2648.6,2648.4,0.8153]
[1727235002236,3.77565,2648.6,2648.2,0.8301]
[1727235003731,3.77565,2648.6,2648.2,4.60624]
[1727235004136,3.77537,2648.8,2648.3,5.96474694]
[1727235004351,3.77537,2648.8,2648.4,0.8301]
[1727235006289,3.77546,2648.7,2648.4,0.8301]
[1727235006452,7.55079,2648.8,2648.4,0.8301]
[1727235006875,3.77537,2648.8,2648.4,0.8301]
[1727235007263,7.55075,2648.8,2648.4,0.8301]
[1727235007507,3.77537,2648.8,2648.4,0.8301]
[1727235008098,3.77552,2648.7,2648.4,0.8301]
[1727235008782,3.77537,2648.8,2648.4,0.8301]
[1727235009713,3.77565,2648.6,2648.4,0.8301]
[1727235009883,0.8056,2648.7,2648.0,0.8301]
[1727235010080,3.77593,2648.4,2648.0,0.8301]
[1727235012000,1.28320323,2648.8,2648.2,0.8301]
[1727235012001,3.77537,2648.8,2648.2,0.8301]
[1727235012818,3.77559,2648.6,2648.2,0.8301]
[1727235013817,3.77559,2648.6,2648.2,4.60624]
[1727235014220,3.77537,2648.8,2648.3,0.8301]
[1727235014723,7.5508,2648.8,2648.3,0.8301]
[1727235014918,3.77547,2648.7,2648.3,0.8301]
[1727235016046,1.95741597,2649.0,2648.4,0.7655]
[1727235016253,3.7753,2648.8,2648.4,0.7655]
[1727235016453,3.77526,2648.9,2648.4,0.7655]
[1727235016454,3.77544,2648.7,2648.4,0.7655]
[1727235017334,7.55055,2648.9,2648.4,0.7655]
[1727235018356,3.77526,2648.9,2648.4,0.7655]
[1727235018536,5.74047415,2649.1,2648.5,0.7655]
[1727235018857,3.77496,2649.1,2648.6,4.6165067]
[1727235019054,3.77465,2649.3,2648.8,0.7655]
[1727235019215,3.77473,2649.2,2648.8,0.7655]
[1727235019417,3.77488,2649.1,2648.8,0.7655]
[1727235019654,3.77508,2649.0,2648.8,0.7655]
[1727235022951,3.77515,2648.9,2648.6,0.7655]
[1727235024247,3.77508,2649.0,2648.6,0.7655]
[1727235025786,3.7753,2648.8,2648.6,0.7655]
[1727235026549,3.77508,2649.0,2648.6,0.7655]
[1727235026791,3.77517,2648.9,2648.6,0.7655]
[1727235027448,7.55016,2649.0,2648.6,0.7655]
[1727235027654,3.77515,2648.9,2648.6,0.7655]
[1727235032830,3.775,2649.0,2648.6,0.7655]
[1727235033200,3.77515,2648.9,2648.6,0.7655]
[1727235036091,7.55041,2648.9,2648.6,0.7655]
[1727235036327,3.77515,2648.9,2648.6,0.7655]
[1727235036540,3.77543,2648.7,2648.2,0.7861]
[1727235036695,3.77583,2648.5,2648.2,0.7861]
[1727235036892,3.77553,2648.7,2648.2,0.7861]
[1727235037119,3.77523,2648.9,2648.2,0.7861]
[1727235037120,3.77531,2648.8,2648.4,0.7861]
[1727235038754,3.77566,2648.6,2648.4,0.7861]
[1727235038950,3.77572,2648.5,2648.2,0.7861]
[1727235040025,3.77567,2648.6,2648.2,0.7861]
[1727235040244,3.77573,2648.5,2648.2,0.7861]
[1727235046160,3.77559,2648.6,2648.2,0.7861]
[1727235046558,3.77553,2648.7,2648.2,0.7861]
[1727235046744,3.7756,2648.6,2648.2,0.7861]
[1727235047756,7.55156,2648.5,2648.2,0.7861]
[1727235047976,7.55156,2648.5,2648.0,0.8264]
[1727235047977,3.77586,2648.4,2648.0,0.8264]
[1727235048286,3.77607,2648.3,2648.0,0.8264]
[1727235048862,3.77586,2648.4,2648.0,0.8264]
[1727235049065,7.55185,2648.4,2648.0,0.8264]
[1727235049969,3.77586,2648.4,2648.0,0.8264]
[1727235050166,7.55184,2648.4,2648.0,0.8264]
[1727235050478,3.77601,2648.3,2648.0,0.8264]
[1727235054813,3.77573,2648.5,2648.0,4.60283]
[1727235055679,7.55154,2648.5,2648.0,0.8264]
[1727235056081,3.77573,2648.5,2648.0,0.8264]
[1727235056320,3.7759,2648.4,2648.0,0.8264]
[1727235060418,3.77573,2648.5,2648.0,0.8264]
[1727235060619,3.77601,2648.3,2648.0,0.8264]
[1727235064370,1.96413917,2648.9,2648.2,1.28320323]
[1727235064642,3.77524,2648.9,2648.5,0.8063]
[1727235064842,7.55046,2648.9,2648.5,0.8063]
[1727235065082,3.77522,2648.9,2648.5,0.8063]
[1727235065349,7.55046,2648.9,2648.5,0.8063]
[1727235065519,3.77494,2649.1,2648.5,4.58199]
[1727235065724,3.7751,2649.0,2648.5,4.65751665]
[1727235065933,3.77494,2649.1,2648.6,0.8063]
[1727235066135,3.77494,2649.1,2648.7,0.07550008]
[1727235066343,3.77502,2649.0,2648.7,0.07550008]
[1727235066540,3.77494,2649.1,2648.7,0.07550008]
[1727235067692,7.5499,2649.1,2648.7,0.07550008]
[1727235067816,7.5499,2649.1,2648.6,0.88180012]
[1727235068216,3.77475,2649.2,2648.6,4.65737012]
[1727235068454,3.77475,2649.2,2648.7,0.8063]
[1727235068636,3.77487,2649.1,2648.7,0.8063]
[1727235069149,3.77465,2649.3,2648.7,0.8063]
[1727235069447,3.77472,2649.2,2648.7,0.8817973]
[1727235069958,3.77487,2649.1,2648.7,0.8817973]
[1727235070331,3.77487,2649.1,2648.7,0.8063]
[1727235070569,3.77552,2648.7,2648.4,0.8063]
[1727235070866,3.77516,2648.9,2648.4,0.8063]
[1727235071035,3.77516,2648.9,2648.4,0.88180759]
[1727235072042,3.77531,2648.8,2648.4,0.88180759]
[1727235072367,3.77516,2648.9,2648.4,0.88180759]
[1727235073667,7.55041,2648.9,2648.4,0.88180759]
[1727235074255,3.77516,2648.9,2648.4,0.88180759]
[1727235074434,3.7753,2648.8,2648.4,0.88180759]
[1727235076372,3.77516,2648.9,2648.4,0.88180759]
[1727235077056,3.77495,2649.1,2648.5,0.775]
[1727235077255,3.77478,2649.2,2648.7,0.775]
[1727235077455,3.77478,2649.2,2648.9,0.775]
[1727235077688,3.77459,2649.3,2648.9,0.775]
[1727235078084,3.77438,2649.5,2649.0,0.07549362]
[1727235078391,3.77438,2649.5,2649.1,0.775]
[1727235078606,3.7741,2649.7,2649.1,3.85023886]
[1727235078804,0.03956627,2649.8,2649.1,3.85023886]
[1727235078805,3.81350627,2649.8,2649.3,0.775]
[1727235078959,0.03956627,2649.8,2649.5,0.775]
[1727235081261,3.81345627,2649.8,2649.5,0.775]
[1727235081495,0.03956627,2649.8,2649.5,0.775]
[1727235082703,0.03956627,2649.8,2649.6,0.07547717]
[1727235082946,0.03956627,2649.8,2649.5,0.775]
[1727235082947,0.03956627,2649.8,2649.5,0.85047717]
[1727235083443,0.03956627,2649.8,2649.5,0.775]
[1727235085710,3.81346627,2649.8,2649.5,0.775]
[1727235085931,3.77406,2649.7,2649.5,0.775]
[1727235086739,0.03956627,2649.8,2649.5,0.775]
[1727235087254,3.81345627,2649.8,2649.5,0.775]
[1727235089314,3.77411,2649.7,2649.5,0.775]
[1727235090034,3.77415,2649.6,2649.5,0.775]
[1727235090605,3.77432,2649.5,2649.0,0.775]
[1727235091118,3.77446,2649.4,2649.0,0.775]
[1727235091645,3.77432,2649.5,2649.0,0.775]
[1727235091933,7.54871,2649.5,2649.0,0.775]
[1727235092134,7.54873,2649.5,2649.0,0.775]
[1727235092343,3.77432,2649.5,2649.0,0.775]
[1727235092540,7.54871,2649.5,2649.0,0.775]
[1727235092707,3.77432,2649.5,2649.0,0.775]
[1727235093037,3.77451,2649.4,2649.0,0.775]
[1727235093241,3.77432,2649.5,2649.0,0.775]
[1727235093445,3.77445,2649.4,2649.0,0.775]
[1727235093657,3.77432,2649.5,2649.0,0.775]
[1727235095735,3.77448,2649.4,2649.0,0.775]
[1727235095924,3.77432,2649.5,2649.0,0.775]
[1727235096127,7.54871,2649.5,2649.0,0.775]
[1727235096429,7.54869,2649.5,2649.0,0.775]
[1727235096731,3.77432,2649.5,2649.0,0.775]
[1727235097161,0.03956627,2649.8,2649.2,0.7979]
[1727235097162,3.81353627,2649.8,2649.2,0.7979]
[1727235097466,0.03956627,2649.8,2649.4,0.7979]
[1727235097623,0.03956627,2649.8,2649.5,0.87337537]
[1727235097827,0.03956627,2649.8,2649.5,4.64765537]
[1727235098039,0.03956627,2649.8,2649.6,0.7979]
[1727235098245,0.03956627,2649.8,2649.6,7.42787086]
[1727235098563,0.03956627,2649.8,2649.7,8.12191]
[1727235101228,0.03956627,2649.8,2649.7,0.7979]
[1727235105257,0.03956627,2649.8,2649.7,4.57191]
[1727235105476,0.03956627,2649.8,2649.7,7.57191]
[1727235105682,0.03956627,2649.8,2649.7,7.64737721]
[1727235108397,0.03956627,2649.8,2649.7,0.87336721]
[1727235113763,0.03956627,2649.8,2649.7,7.64737721]
[1727235113964,0.03863905,2649.8,2649.7,7.64737721]
[1727235114366,0.03863905,2649.8,2649.7,8.19737721]
[1727235114565,0.03863905,2649.8,2649.7,8.12191]
[1727235115696,0.03863905,2649.8,2649.7,0.7979]
[1727235119608,0.03863905,2649.8,2649.7,4.57191]
[1727235121413,0.03863905,2649.8,2649.7,0.7979]
[1727235121571,0.03863905,2649.8,2649.6,0.55]
[1727235121769,0.03863905,2649.8,2649.5,4.59797]
[1727235121966,0.03863905,2649.8,2649.5,4.67344218]
[1727235122167,0.03863905,2649.8,2649.6,3.77403]
[1727235122375,0.03863905,2649.8,2649.7,5.22328007]
[1727235123669,0.03863905,2649.8,2649.7,9.12027433]
[1727235124009,0.0386997,2650.6,2650.3,0.8238]
[1727235124414,0.0386997,2650.6,2650.3,4.59692]
[1727235124713,0.0386997,2650.6,2650.5,3.77287]
[1727235125787,0.0386997,2650.6,2650.4,3.84835259]
[1727235126484,0.0386997,2650.6,2650.3,0.8238]
[1727235126680,0.0386997,2650.6,2650.4,4.39845832]
[1727235126880,0.0386997,2650.6,2650.4,4.39837832]
[1727235127088,0.0386997,2650.6,2650.5,3.77287]
[1727235128019,0.0386997,2650.6,2650.3,4.59684]
[1727235128579,0.0386997,2650.6,2650.2,0.55]
[1727235129123,0.0386997,2650.6,2650.0,0.8238]
[1727235129124,2.78035548,2650.4,2650.0,0.8238]
[1727235129277,6.55347548,2650.4,2649.8,7.59757]
[1727235129476,0.7829,2650.3,2649.9,3.77372]
[1727235129782,0.7829,2650.3,2649.8,3.8238]
[1727235130108,0.7829,2650.3,2649.9,3.77362]
[1727235130308,0.7829,2650.5,2649.9,3.84908399]
[1727235130511,4.55589,2650.5,2649.9,3.77362]
[1727235130804,4.55589,2650.5,2649.9,7.54726]
[1727235131009,4.55589,2650.5,2649.9,3.84908397]
[1727235131568,4.55589,2650.5,2649.7,7.27]
[1727235131569,6.55374548,2650.2,2649.7,7.27]
[1727235131814,6.55341548,2650.4,2649.7,3.7739]
[1727235132578,3.77324,2650.3,2649.7,3.7739]
[1727235133327,3.77324,2650.3,2649.5,18.4809436]
[1727235133328,0.7829,2650.0,2649.4,3.0]
[1727235133628,0.7829,2650.0,2649.5,3.7742]
[1727235135505,4.55648,2650.0,2649.4,3.7744]
[1727235135706,8.33017,2650.0,2649.4,3.7744]
[1727235135923,4.55648,2650.0,2649.4,3.7744]
[1727235136223,4.55648,2650.0,2649.4,7.54875]
[1727235136427,3.77396,2649.8,2649.3,0.8238]
[1727235136595,3.77396,2649.8,2649.2,11.04463]
[1727235136783,3.77404,2649.7,2649.2,11.04463]
[1727235137583,6.55431548,2649.8,2649.2,11.04463]
[1727235137805,10.32831548,2649.8,2649.2,11.04463]
[1727235138006,6.55431548,2649.8,2649.2,11.04463]
[1727235138322,6.55431548,2649.8,2649.0,7.53912]
[1727235138323,0.7706,2649.5,2649.0,7.53912]
[1727235138527,0.7706,2649.5,2648.8,3.77521]
[1727235138685,4.54493,2649.5,2649.0,3.77493]
[1727235139029,4.54493,2649.5,2649.0,4.16166591]
[1727235139316,4.54493,2649.5,2648.9,0.38673591]
[1727235139622,4.54493,2649.5,2648.9,3.77514]
[1727235139922,3.77448,2649.4,2648.8,7.55037]
[1727235140128,3.77448,2649.4,2648.8,3.77516]
[1727235140446,3.77448,2649.4,2648.9,4.16191432]
[1727235140729,3.77448,2649.4,2648.9,3.77514]
[1727235140886,6.55483548,2649.4,2648.7,0.7642]
[1727235141077,6.55483548,2649.4,2648.7,4.53962]
[1727235141078,3.77476,2649.2,2648.7,4.53962]
[1727235141317,3.77476,2649.2,2648.9,0.38678851]
[1727235141496,3.77476,2649.2,2648.7,4.9263842]
[1727235141705,3.77476,2649.2,2648.7,4.1621842]
[1727235141918,6.55483548,2649.4,2648.7,4.1621842]
[1727235141919,6.55483548,2649.4,2648.8,3.77527]
[1727235142083,3.7746,2649.3,2648.8,3.77527]
[1727235142486,3.7746,2649.3,2648.7,0.3867642]
[1727235142726,0.7706,2649.1,2648.7,0.38672472]
[1727235142925,0.7706,2649.1,2648.5,11.8099]
[1727235142926,3.77525,2648.9,2648.5,7.27]
[1727235143141,3.77525,2648.9,2648.4,13.8829136]
[1727235143443,0.7706,2648.7,2648.4,13.8829136]
[1727235144426,4.54606,2648.7,2648.4,13.8829136]
[1727235144599,0.7706,2648.7,2648.4,13.8829136]
[1727235145435,3.77572,2648.5,2648.4,13.8829136]
[1727235145855,3.77587,2648.4,2647.8,3.77671]
[1727235146015,3.55095548,2648.7,2647.7,8.0342]
[1727235146016,7.32644548,2648.7,2647.7,0.7642]
[1727235146214,4.54609,2648.7,2647.8,0.0755178]
[1727235146415,0.7706,2648.7,2648.3,3.7759]
[1727235148256,0.7706,2648.7,2648.3,3.85141161]
[1727235148413,0.7706,2648.7,2648.3,3.7759]
[1727235152574,3.77532,2648.8,2648.3,3.7759]
[1727235152777,3.77523,2648.9,2648.3,3.77592]
[1727235153940,3.77523,2648.9,2648.3,0.55]
[1727235154138,3.77523,2648.9,2648.4,3.77585]
[1727235155339,7.55028,2649.0,2648.4,3.77585]
[1727235155535,3.77515,2648.9,2648.4,3.77585]
[1727235158063,3.77514,2649.0,2648.3,0.55]
[1727235158268,3.7753,2648.8,2648.2,7.5521]
[1727235158605,3.7753,2648.8,2648.3,3.77591]
[1727235159011,0.7655,2648.7,2648.2,3.77603]
[1727235159365,3.77567,2648.6,2648.0,4.55444]
[1727235159803,3.77574,2648.5,2648.0,4.55444]
[1727235159965,4.54102,2648.7,2648.0,4.55439]
[1727235160165,4.54102,2648.7,2648.2,3.77614]
[1727235160374,8.31655,2648.7,2648.2,3.77614]
[1727235160575,4.54102,2648.7,2648.2,3.77614]
[1727235160808,8.31658,2648.7,2648.2,3.77614]
[1727235161297,8.31658,2648.7,2648.0,8.33068]
[1727235161465,8.31658,2648.7,2648.1,3.77627]
[1727235162391,4.54102,2648.7,2648.2,3.77614]
[1727235162995,0.7655,2648.7,2648.3,3.77591]
[1727235164178,0.7655,2648.7,2648.4,3.77584]
[1727235164596,3.77524,2648.9,2648.4,3.77584]
[1727235164806,4.54074,2648.9,2648.4,3.77584]
[1727235164999,8.31601,2648.9,2648.4,3.77584]
[1727235165178,4.54074,2648.9,2648.4,3.77584]
[1727235166515,8.31596,2648.9,2648.4,3.77584]
[1727235166715,0.7655,2648.9,2648.4,3.77573]
[1727235167337,0.7655,2648.9,2648.5,0.8113]
[1727235167704,4.54067,2648.9,2648.5,0.8113]
[1727235167999,4.54067,2648.9,2648.4,3.77573]
[1727235169514,0.7655,2648.9,2648.5,3.77565]
[1727235175817,0.7655,2648.9,2648.7,3.7754]
[1727235176021,0.7624,2649.1,2648.7,3.7754]
[1727235176217,0.7624,2649.1,2648.5,3.77565]
[1727235176218,4.53728,2649.1,2648.5,7.55123]
[1727235176542,4.53728,2649.1,2648.6,3.77552]
[1727235176847,5.05820821,2649.0,2648.5,3.77558]
[1727235177249,5.05820821,2649.0,2648.5,7.5512]
[1727235177427,2.04558821,2648.8,2648.3,4.58719]
[1727235177936,2.04558821,2648.8,2648.3,8.36311]
[1727235178349,2.04558821,2648.8,2648.4,3.77578]
[1727235179356,0.7624,2648.8,2648.4,3.77578]
[1727235179657,0.7624,2648.8,2648.5,3.77569]
[1727235179865,0.7624,2648.8,2648.5,7.55133]
[1727235180167,0.7624,2648.8,2648.5,3.77564]
[1727235181863,0.7624,2648.8,2648.4,4.1627701]
[1727235182066,0.7624,2648.8,2648.4,3.77581]
[1727235182631,5.82090821,2648.8,2648.3,3.77597]
[1727235182873,2.06698821,2648.4,2648.1,1.3468086]
[1727235183021,2.06698821,2648.4,2647.9,2.97437284]
[1727235183022,3.77609,2648.3,2647.9,1.3468086]
[1727235183227,1.28318821,2648.2,2647.7,13.8829136]
[1727235183425,4.56009,2648.1,2647.7,13.8829136]
[1727235183855,5.05962821,2648.0,2647.7,13.8829136]
[1727235184065,1.28318821,2647.8,2647.5,0.78576712]
[1727235184227,5.06020821,2647.6,2647.4,0.0386997]
[1727235184443,6.63637374,2647.6,2647.4,0.0386997]
[1727235184648,4.56094,2647.5,2647.4,0.0386997]
[1727235185142,4.63647097,2647.5,2647.4,0.0386997]
[1727235185350,5.68067037,2647.5,2647.4,0.0386997]
[1727235185585,1.90353037,2647.5,2647.4,0.0386997]
[1727235185772,5.68067037,2647.5,2647.4,0.0386997]
[1727235187260,4.56094,2647.5,2647.4,0.0386997]
[1727235188189,0.7838,2647.5,2647.4,0.0386997]
[1727235189192,0.7838,2647.8,2647.4,3.8158797]
[1727235190176,0.7838,2648.0,2647.5,3.77703]
[1727235190376,4.56025,2648.0,2647.4,3.8158797]
[1727235190842,4.56025,2648.0,2647.4,7.5930897]
[1727235191045,4.56025,2648.0,2647.5,3.77714]
[1727235191584,0.7838,2648.0,2647.4,3.8158797]
[1727235191996,4.56025,2648.0,2647.4,3.8158797]
[1727235192965,4.56025,2648.0,2647.4,0.0386997]
[1727235193164,0.7838,2648.0,2647.5,3.77712]
[1727235193495,3.77658,2647.9,2647.4,0.0386997]
[1727235193649,2.78382277,2647.8,2647.4,0.0386997]
[1727235193855,0.85933097,2647.7,2647.4,0.0386997]
[1727235194164,0.85933097,2647.7,2647.4,3.8159697]
[1727235194165,0.7838,2647.7,2647.4,3.8159697]
[1727235194352,0.7838,2647.7,2647.4,0.0386997]
[1727235194980,0.7838,2647.7,2647.4,3.8158997]
[1727235196091,0.7838,2647.7,2647.4,0.0386997]
[1727235196894,1.52578837,2647.7,2647.4,0.0386997]
[1727235197062,4.63626097,2647.7,2647.4,0.0386997]
[1727235197690,0.7838,2647.7,2647.4,0.0386997]
[1727235197989,4.63623097,2647.7,2647.4,0.0386997]
[1727235199162,3.77706,2647.6,2647.4,0.0386997]
[1727235199361,0.07553097,2647.5,2647.4,0.0386997]
[1727235199900,0.86153097,2647.5,2647.4,0.0386997]
[1727235200265,5.75860234,2647.5,2647.4,0.0386997]
[1727235200952,5.68307137,2647.5,2647.4,0.0386997]
[1727235202485,0.786,2647.5,2647.4,0.0386997]
[1727235204493,0.786,2647.9,2647.4,3.8159697]
[1727235207107,4.5626,2647.9,2647.4,3.8159697]
[1727235207474,4.5626,2647.9,2647.4,0.0386997]
[1727235210210,6.56054277,2647.8,2647.4,0.0386997]
[1727235210512,3.77687,2647.7,2647.4,0.0386997]
[1727235210708,6.56054277,2647.8,2647.4,0.0386997]
[1727235212708,10.33739277,2647.8,2647.4,0.0386997]
[1727235212894,6.56054277,2647.8,2647.4,0.0386997]
[1727235215214,3.77688,2647.7,2647.4,0.0386997]
[1727235217153,4.53134,2647.5,2647.4,0.0386997]
[1727235217304,4.60687097,2647.5,2647.4,0.0386997]
[1727235217817,3.77692,2647.7,2647.4,0.0386997]
[1727235218002,4.53134,2647.5,2647.4,0.0386997]
[1727235218202,1.49326937,2647.5,2647.4,0.0386997]
[1727235218426,0.7542,2647.5,2647.4,0.0386997]
[1727235219341,4.53134,2647.5,2647.4,0.0386997]
[1727235220828,0.7542,2647.5,2647.4,0.0386997]
[1727235221248,4.53134,2647.5,2647.4,0.0386997]
[1727235221446,0.7542,2647.5,2647.4,0.0386997]
[1727235222145,4.53134,2647.5,2647.4,0.0386997]
[1727235222967,3.77714,2647.5,2647.4,0.0386997]
[1727235224569,5.81587975,2647.6,2647.4,0.0386997]
[1727235224869,9.59297975,2647.6,2647.4,0.0386997]
[1727235225461,3.77714,2647.5,2647.4,0.0386997]
[1727235233013,3.77701,2647.6,2647.4,0.0386997]
[1727235233626,3.77714,2647.5,2647.4,0.0386997]
[1727235234218,3.77701,2647.6,2647.4,0.0386997]
[1727235234747,7.55409,2647.6,2647.4,0.0386997]
[1727235235649,3.77701,2647.6,2647.4,0.0386997]
[1727235235865,3.77714,2647.5,2647.4,0.0386997]
[1727235239631,5.06180975,2647.5,2647.4,0.0386997]
[1727235240670,6.8434227,2647.5,2647.4,0.0386997]
[1727235241379,6.0212227,2647.5,2647.4,0.0386997]
[1727235241886,6.8478227,2647.5,2647.4,0.0386997]
[1727235242088,9.8478227,2647.5,2647.4,0.0386997]
[1727235242239,9.77229173,2647.5,2647.4,0.0386997]
[1727235249514,3.0,2647.5,2647.4,0.0386997]
[1727235249665,3.77701,2647.6,2647.4,0.0386997]
[1727235250000,0.8266,2647.7,2647.4,0.0386997]
[1727235250001,3.77688,2647.7,2647.4,0.0386997]
[1727235250307,5.06154975,2647.7,2647.4,0.0386997]
[1727235250604,1.28466975,2647.5,2647.4,0.0386997]
[1727235251279,1.36020072,2647.5,2647.4,0.0386997]
[1727235252088,5.65106179,2647.5,2647.4,0.0386997]
[1727235253574,6.47766179,2647.5,2647.4,0.0386997]
[1727235256867,5.13734072,2647.5,2647.4,0.0386997]
[1727235257908,3.77686,2647.7,2647.4,0.8585997]
[1727235258093,5.06152975,2647.7,2647.4,0.8585997]
[1727235258700,8.83847975,2647.7,2647.4,0.8585997]
[1727235258881,3.77702,2647.6,2647.4,0.8585997]
[1727235259587,1.28466975,2647.7,2647.4,0.8585997]
[1727235259784,5.06153975,2647.7,2647.4,0.8585997]
[1727235261818,1.28466975,2647.7,2647.4,0.8585997]
[1727235262318,1.28466975,2647.7,2647.4,4.6358897]
[1727235262615,1.28466975,2647.7,2647.4,0.8585997]
[1727235267118,8.83862975,2647.7,2647.4,0.8585997]
[1727235267419,3.77702,2647.6,2647.4,0.8585997]
[1727235268528,3.77701,2647.6,2647.4,0.8585997]
[1727235271396,5.06180975,2647.5,2647.4,0.0386997]
[1727235272305,1.28466975,2647.5,2647.4,0.0386997]
[1727235272818,5.13734072,2647.5,2647.4,0.0386997]
[1727235273120,5.89004072,2647.5,2647.4,0.0386997]
[1727235273320,8.89004072,2647.5,2647.4,0.0386997]
[1727235273484,10.13961332,2647.5,2647.4,0.0386997]
[1727235277498,9.38691332,2647.5,2647.4,0.0386997]
[1727235286362,5.06180975,2647.5,2647.4,0.0386997]
[1727235289619,5.06074975,2648.3,2647.8,0.8037]
[1727235290443,3.77615,2648.2,2647.8,0.8037]
[1727235290645,5.06074975,2648.3,2647.8,0.8037]
[1727235291058,5.06074975,2648.3,2647.8,4.5804]
[1727235291260,5.06074975,2648.3,2647.7,3.77677]
[1727235291261,3.77586,2648.4,2647.9,3.77655]
[1727235291470,0.7864,2648.8,2648.0,0.8037]
[1727235291471,5.06002975,2648.8,2648.0,0.8037]
[1727235291783,5.05971975,2649.0,2648.4,4.57948]
[1727235291935,3.77516,2648.9,2648.4,0.8037]
[1727235292851,3.77505,2649.0,2648.4,0.8037]
[1727235293065,3.77532,2648.8,2648.4,0.8037]
[1727235296881,3.77505,2649.0,2648.5,3.7756]
[1727235297098,3.77505,2649.0,2648.6,0.8037]
[1727235297387,3.77479,2649.2,2648.6,4.57916]
[1727235297584,7.54961,2649.2,2648.6,4.57916]
[1727235297757,3.77488,2649.1,2648.6,4.57916]
[1727235298486,6.5554354,2649.2,2648.7,0.8037]
[1727235298675,3.7749,2649.1,2648.7,0.8037]
[1727235298871,3.77501,2649.0,2648.7,0.8037]
[1727235300380,3.77515,2648.9,2648.7,0.8037]
[1727235301142,6.5556554,2649.0,2648.7,0.8037]
[1727235301641,3.77516,2648.9,2648.7,0.8037]
[1727235302282,6.5556554,2649.0,2648.7,0.8037]
[1727235302486,10.3307854,2649.0,2648.7,0.8037]
[1727235302690,3.77501,2649.0,2648.7,0.8037]
[1727235302996,7.55014,2649.0,2648.7,0.8037]
[1727235303205,3.77516,2648.9,2648.7,0.8037]
[1727235304007,3.77516,2648.9,2648.4,0.7822]
[1727235304008,3.5553454,2648.8,2648.4,0.7822]
[1727235304211,3.77598,2648.4,2648.0,0.7822]
[1727235304376,6.5567254,2648.3,2648.0,0.7822]
[1727235305219,3.77615,2648.2,2648.0,0.7822]
[1727235305419,3.77574,2648.5,2648.0,0.7822]
[1727235305710,3.77608,2648.3,2648.0,0.7822]
[1727235306069,7.55216,2648.3,2648.0,0.7822]
[1727235306705,3.77608,2648.3,2648.0,0.7822]
[1727235306910,7.55216,2648.3,2648.0,0.7822]
[1727235307085,3.77608,2648.3,2648.0,0.7822]
[1727235307603,7.55217,2648.3,2648.0,0.7822]
[1727235307812,3.77608,2648.3,2648.0,0.7822]
[1727235308385,7.55218,2648.3,2648.0,0.7822]
[1727235308586,7.55217,2648.3,2648.0,0.7822]
[1727235308795,3.77608,2648.3,2648.0,0.7822]
[1727235308981,7.55217,2648.3,2648.0,0.7822]
[1727235309321,3.77608,2648.3,2648.0,0.7822]
[1727235309706,7.55217,2648.3,2648.0,0.7822]
[1727235309906,3.77608,2648.3,2648.0,0.7822]
[1727235310105,3.7762,2648.2,2648.0,0.7822]
[1727235310426,3.77629,2648.1,2648.0,0.7822]
[1727235311916,3.77615,2648.2,2648.0,0.7822]
[1727235312484,3.77614,2648.2,2648.0,0.7822]
[1727235312683,3.77629,2648.1,2648.0,0.7822]
[1727235314499,3.77629,2648.1,2647.7,0.7822]
[1727235314716,7.55267,2648.1,2647.7,0.7822]
[1727235315096,1.28410858,2647.8,2647.7,0.7822]
[1727235315310,3.777,2647.6,2647.5,0.7822]
[1727235315520,5.06110858,2647.6,2647.5,0.7822]
[1727235316008,5.06082858,2647.8,2647.5,0.7822]
[1727235316333,0.7984,2648.6,2647.8,0.8156]
[1727235316537,3.77621,2648.2,2647.8,0.8156]
[1727235319861,3.77615,2648.2,2647.8,0.8156]
[1727235324748,3.77646,2648.0,2647.8,0.8156]
[1727235325321,3.77637,2648.1,2647.8,0.8156]
[1727235325522,3.77615,2648.2,2647.8,0.8156]
[1727235325920,3.77595,2648.4,2647.9,0.8156]